fUST/lending_fUST_20250627
["ID","MTS","AMOUNT","RATE_DAILY","PERIOD"]
[368120238,1751029855668,-1687.24,0.00022465,2]
[368120239,1751029855677,-464.33,0.00022465,2]
[368120240,1751029855687,-682.9,0.00022465,2]
[368120241,1751029855695,-337.726261,0.00022465,7]
[368120242,1751029855705,-337.726261,0.00022465,7]
[368120243,1751029855715,-460.0,0.00022465,2]
[368120244,1751029855724,-460.0,0.00022465,2]
[368120245,1751029855733,-626.65,0.00022465,2]
[368120246,1751029855742,-778.42,0.00022465,2]
[368120247,1751029855752,-1807.73,0.00022465,2]
[368120248,1751029855761,-2700.44,0.00022465,2]
[368120249,1751029855771,-1046.99,0.00022465,2]
[368120250,1751029855780,-1874.32,0.00022465,2]
[368120251,1751029855790,-1037.07,0.00022465,2]
[368120252,1751029855800,-627.06,0.00022465,2]
[368120253,1751029855809,-460.0,0.00022465,2]
[368120254,1751029855819,-460.0,0.00022465,2]
[368120255,1751029855828,-665.9,0.00022465,2]
[368120256,1751029855841,-460.0,0.00022465,2]
[368120257,1751029855851,-3786.78,0.00022465,2]
[368120258,1751029855862,-1216.38,0.00022465,2]
[368120259,1751029855872,-727.16,0.00022465,2]
[368120260,1751029855883,-3017.37,0.00022465,2]
[368120261,1751029855893,-4525.56,0.00022465,2]
[368120262,1751029855903,-515.06,0.00022465,2]
[368120263,1751029855913,-2147.92,0.00022465,2]
[368120264,1751029855923,-954.2,0.00022465,2]
[368120265,1751029855933,-848.16,0.00022465,2]
[368120266,1751029855943,-464.02,0.00022465,2]
[368120267,1751029855953,-460.0,0.00022465,2]
[368120268,1751029855964,-5421.31,0.00022465,2]
[368120269,1751029855973,-460.0,0.00022465,2]
[368120270,1751029855983,-1003.82722051,0.000225,2]
[368120271,1751029855992,-4233.7316821,0.000225,2]
[368120272,1751029856002,-300.0,0.000225,14]
[368120273,1751029856011,-160.0,0.000225,4]
[368120274,1751029856022,-169.4218105,0.000225,5]
[368120275,1751029856032,-160.0,0.000225,5]
[368120276,1751029856041,-1000.0,0.00022521,2]
[368120277,1751029856050,-1000.0,0.00022521,2]
[368120278,1751029856060,-1001.06269744,0.00022521,2]
[368120279,1751029856069,-1000.0,0.00022521,2]
[368120280,1751029856078,-1000.0,0.00022521,2]
[368120281,1751029856087,-180.72110344,0.00022521,2]
[368120282,1751029856096,-500.84397644,0.00022521,2]
[368120283,1751029856106,-1000.0,0.00022521,2]
[368120284,1751029856115,-1000.0,0.00022521,2]
[368120285,1751029856124,-1000.0,0.00022521,2]
[368120286,1751029856134,-1000.0,0.00022521,2]
[368120287,1751029856143,-1000.0,0.00022521,2]
[368120288,1751029856152,-1200.0,0.00022521,2]
[368120289,1751029856161,-500.0,0.00022521,2]
[368120290,1751029856171,-500.0,0.00022521,2]
[368120291,1751029856181,-1000.0,0.00022521,2]
[368120292,1751029856191,-1000.0,0.00022521,2]
[368120293,1751029856202,-1000.0,0.00022521,2]
[368120294,1751029856212,-1000.0,0.00022521,2]
[368120295,1751029856221,-500.0,0.00022521,2]
[368120296,1751029856232,-500.0,0.00022521,2]
[368120297,1751029856242,-500.0,0.00022521,2]
[368120298,1751029856252,-500.0,0.00022521,2]
[368120299,1751029856262,-533.24236596,0.00022521,2]
[368120300,1751029856270,-1000.0,0.00022521,2]
[368120301,1751029856280,-1000.0,0.00022521,2]
[368120302,1751029856289,-500.0,0.00022521,2]
[368120303,1751029856301,-230.46684942,0.00022521,2]
[368120304,1751029856311,-1000.0,0.00022521,2]
[368120305,1751029856400,-1000.0,0.00022521,2]
[368120306,1751029856410,-500.0,0.00022521,2]
[368120307,1751029856420,-500.0,0.00022521,2]
[368120308,1751029856429,-500.0,0.00022521,2]
[368120309,1751029856439,-1000.0,0.00022521,2]
[368120310,1751029856449,-500.0,0.00022521,2]
[368120311,1751029856458,-500.0,0.00022521,2]
[368120312,1751029856468,-500.0,0.00022521,2]
[368120313,1751029856477,-500.0,0.00022521,2]
[368120314,1751029856487,-500.0,0.00022521,2]
[368120315,1751029856496,-1000.0,0.00022521,2]
[368120316,1751029856506,-500.0,0.00022521,2]
[368120317,1751029856515,-500.0,0.00022521,2]
[368120318,1751029856524,-500.0,0.00022521,2]
[368120319,1751029856534,-500.0,0.00022521,2]
[368120320,1751029856543,-151.0,0.00022521,7]
[368120321,1751029856553,-151.0,0.00022521,7]
[368120322,1751029856562,-151.0,0.00022521,7]
[368120323,1751029856571,-151.0,0.00022521,7]
[368120324,1751029856580,-395.397538,0.00022521,7]
[368120325,1751029856590,-444.860629,0.00022521,7]
[368120326,1751029856599,-444.860629,0.00022521,7]
[368120327,1751029856609,-365.776085,0.00022521,7]
[368120328,1751029856618,-365.776085,0.00022521,7]
[368120329,1751029856628,-151.0,0.00022521,7]
[368120330,1751029856637,-151.0,0.00022526,7]
[368120331,1751029856646,-151.0,0.00022526,7]
[368120332,1751029856655,-262.401285,0.00022526,7]
[368120333,1751029856665,-262.401285,0.00022526,7]
[368120334,1751029856674,-151.0,0.00022526,7]
[368120335,1751029856683,-151.0,0.00022526,7]
[368120336,1751029856693,-10118.81432848,0.0002259,7]
[368120337,1751029856702,-10400.39089948,0.0002259,2]
[368120338,1751029856711,-10075.87823565,0.000226,2]
[368120339,1751029856721,-161.50525749,0.000226,7]
[368120340,1751029856731,-9968.16092387,0.000226,5]
[368120341,1751029856741,-151.0,0.000226,7]
[368120342,1751029856750,-249.895528,0.000226,7]
[368120343,1751029856759,-151.0,0.000226,7]
[368120344,1751029856769,-151.0,0.000226,7]
[368120345,1751029856778,-151.0,0.000226,7]
[368120346,1751029856788,-151.0,0.000226,7]
[368120347,1751029856798,-166.08289693,0.00022603,2]
[368120348,1751029856807,-358.466093,0.00022603,2]
[368120349,1751029856817,-200.0,0.0002261,6]
[368120350,1751029856826,-800.0,0.00022714,2]
[368120351,1751029856838,-460.0,0.00022739,2]
[368120352,1751029856851,-460.0,0.00022739,2]
[368120353,1751029856860,-460.0,0.00022739,2]
[368120354,1751029856869,-962.79,0.00022739,2]
[368120355,1751029856880,-460.0,0.00022739,2]
[368120356,1751029856890,-460.0,0.00022739,2]
[368120357,1751029856899,-460.0,0.00022739,2]
[368120358,1751029856910,-460.0,0.00022739,2]
[368120359,1751029856919,-872.16,0.00022739,2]
[368120360,1751029856928,-490.28,0.00022739,2]
[368120361,1751029856937,-3577.22,0.00022739,2]
[368120362,1751029856947,-676.53,0.00022739,2]
[368120363,1751029856956,-1544.03,0.00022739,2]
[368120364,1751029856966,-1861.18,0.00022739,2]
[368120365,1751029856975,-460.0,0.00022739,2]
[368120366,1751029856985,-2946.71,0.00022739,2]
[368120367,1751029856996,-6518.4,0.00022739,2]
[368120368,1751029857005,-460.0,0.00022739,2]
[368120369,1751029857014,-1266.37,0.00022739,2]
[368120370,1751029857023,-460.0,0.00022739,2]
[368120371,1751029857032,-1132.2,0.00022739,2]
[368120372,1751029857041,-765.43,0.00022739,2]
[368120373,1751029857051,-460.0,0.00022739,2]
[368120374,1751029857060,-848.57,0.00022739,2]
[368120375,1751029857069,-460.0,0.00022739,2]
[368120376,1751029857079,-5598.03,0.00022739,2]
[368120377,1751029857088,-460.0,0.00022739,2]
[368120378,1751029857097,-807.46,0.00022739,2]
[368120379,1751029857107,-2217.11,0.00022739,2]
[368120380,1751029857117,-851.26,0.00022739,2]
[368120381,1751029857126,-1687.24,0.00022739,2]
[368120382,1751029857135,-464.33,0.00022739,2]
[368120383,1751029857144,-682.9,0.00022739,2]
[368120384,1751029857154,-460.0,0.00022739,2]
[368120385,1751029857164,-626.65,0.00022739,2]
[368120386,1751029857173,-778.42,0.00022739,2]
[368120387,1751029857182,-1807.73,0.00022739,2]
[368120388,1751029857191,-2700.44,0.00022739,2]
[368120389,1751029857201,-1046.99,0.00022739,2]
[368120390,1751029857210,-1874.32,0.00022739,2]
[368120391,1751029857220,-1037.07,0.00022739,2]
[368120392,1751029857229,-627.06,0.00022739,2]
[368120393,1751029857238,-460.0,0.00022739,2]
[368120394,1751029857248,-460.0,0.00022739,2]
[368120395,1751029857257,-665.9,0.00022739,2]
[368120396,1751029857268,-460.0,0.00022739,2]
[368120397,1751029857278,-3786.78,0.00022739,2]
[368120398,1751029857288,-1216.38,0.00022739,2]
[368120399,1751029857297,-727.16,0.00022739,2]
[368120400,1751029857307,-3017.37,0.00022739,2]
[368120401,1751029857316,-4525.56,0.00022739,2]
[368120402,1751029857325,-515.06,0.00022739,2]
[368120403,1751029857335,-2147.92,0.00022739,2]
[368120404,1751029857344,-954.2,0.00022739,2]
[368120405,1751029857354,-848.16,0.00022739,2]
[368120406,1751029857363,-464.02,0.00022739,2]
[368120407,1751029857373,-557.45951857,0.00022739,2]
[368120408,1751029857382,-5421.31,0.00022739,2]
[368120409,1751029857391,-460.0,0.00022739,2]
[368120410,1751029857401,-500.0,0.0002276,15]
[368120411,1751029857410,-1502.8570191,0.0002277,2]
[368120412,1751029857420,-587.0,0.00022776,2]
[368120413,1751029857429,-166.08289693,0.00022795,2]
[368120414,1751029857439,-10118.81432848,0.00022797,7]
[368120415,1751029857449,-1166.0,0.00022798,6]
[368120416,1751029857459,-722.52951108,0.000228,5]
[368120417,1751029857468,-1721.010829,0.000228,5]
[368120418,1751029857478,-1000.0,0.0002282,5]
[368120419,1751029857487,-1000.0,0.0002284,5]
[368120420,1751029857496,-649.43794077,0.00022852,2]
[368120421,1751029857506,-800.0,0.00022855,2]
[368120422,1751029857515,-1000.0,0.0002286,5]
[368120423,1751029857525,-217731.56966334,0.0002287,7]
[368120424,1751029857536,-3394.80440204,0.0002287,7]
[368120425,1751029857546,-151.0,0.0002287,7]
[368120426,1751029857555,-151.0,0.0002287,7]
[368120427,1751029857564,-151.0,0.0002287,7]
[368120428,1751029857573,-151.0,0.0002287,7]
[368120429,1751029857582,-151.0,0.0002287,7]
[368120430,1751029857591,-151.0,0.0002287,7]
[368120431,1751029857600,-151.0,0.0002287,7]
[368120432,1751029857610,-280.313534,0.0002287,7]
[368120433,1751029857619,-151.0,0.0002287,7]
[368120434,1751029857629,-280.313534,0.0002287,7]
[368120435,1751029857638,-444.860629,0.0002287,7]
[368120436,1751029857647,-444.860629,0.0002287,7]
[368120437,1751029857656,-151.0,0.0002287,7]
[368120438,1751029857665,-188.23,0.0002287,7]
[368120439,1751029857674,-151.0,0.0002287,7]
[368120440,1751029857683,-151.0,0.0002287,7]
[368120441,1751029857693,-151.0,0.0002287,7]
[368120442,1751029857772,-151.0,0.0002287,7]
[368120443,1751029857789,-151.0,0.0002287,7]
[368120444,1751029857798,-152.868998,0.0002287,7]
[368120445,1751029857809,-151.0,0.0002287,7]
[368120446,1751029857819,-151.0,0.0002287,7]
[368120447,1751029857829,-186.605731,0.0002287,7]
[368120448,1751029857842,-151.0,0.0002287,7]
[368120449,1751029857852,-151.0,0.0002287,7]
[368120450,1751029857862,-151.0,0.0002287,7]
[368120451,1751029857871,-325.549941,0.0002287,7]
[368120452,1751029857883,-325.549941,0.0002287,7]
[368120453,1751029857892,-238.482201,0.0002287,7]
[368120454,1751029857902,-238.482201,0.0002287,7]
[368120455,1751029857913,-151.0,0.0002287,7]
[368120456,1751029857923,-151.0,0.0002287,7]
[368120457,1751029857933,-151.0,0.0002287,7]
[368120458,1751029857942,-151.0,0.0002287,7]
[368120459,1751029857951,-216.842154,0.0002287,7]
[368120460,1751029857961,-1294.823434,0.0002287,7]
[368120461,1751029857971,-1294.823434,0.0002287,7]
[368120462,1751029857980,-151.0,0.0002287,7]
[368120463,1751029857990,-151.0,0.0002287,7]
[368120464,1751029857999,-337.726261,0.0002287,7]
[368120465,1751029858008,-337.726261,0.0002287,7]
[368120466,1751029858017,-1059.846132,0.0002287,2]
[368120467,1751029858027,-1059.846132,0.0002287,2]
[368120468,1751029858037,-1000.0,0.0002288,5]
[368120469,1751029858047,-800.0,0.00022882,2]
[368120470,1751029858056,-1000.0,0.000229,5]
[368120471,1751029858067,-800.0,0.0002291,2]
[368120472,1751029858076,-1000.0,0.0002292,5]
[368120473,1751029858085,-631.0,0.00022928,2]
[368120474,1751029858095,-800.0,0.00022928,2]
[368120475,1751029858105,-1000.0,0.0002294,5]
[368120476,1751029858115,-1000.0,0.0002296,5]
[368120477,1751029858125,-150.0,0.00022973,2]
[368120478,1751029858135,-150.0,0.00022973,2]
[368120479,1751029858145,-365.776085,0.00022973,7]
[368120480,1751029858156,-365.776085,0.00022973,7]
[368120481,1751029858165,-333.65411087,0.00022977,2]
[368120482,1751029858175,-6469.53531998,0.0002298,2]
[368120483,1751029858185,-151.0,0.0002298,7]
[368120484,1751029858194,-249.895528,0.0002298,7]
[368120485,1751029858203,-151.0,0.0002298,7]
[368120486,1751029858212,-151.0,0.0002298,7]
[368120487,1751029858222,-262.401285,0.0002298,7]
[368120488,1751029858234,-262.401285,0.0002298,7]
[368120489,1751029858245,-151.0,0.0002298,7]
[368120490,1751029858256,-1000.0,0.0002298,5]
[368120491,1751029858265,-151.0,0.0002298,7]
[368120492,1751029858274,-800.0,0.00022982,2]
[368120493,1751029858283,-500.0,0.00022991,2]
[368120494,1751029858301,-249.23464065,0.00023,2]
[368120495,1751029858313,-1957.78603248,0.00023,2]
[368120496,1751029858323,-1331.84101457,0.00023,2]
[368120497,1751029858334,-500.0,0.00023,3]
[368120498,1751029858344,-500.0,0.00023,3]
[368120499,1751029858353,-2000.0,0.00023,2]
[368120500,1751029858363,-119424.26128453,0.00023,10]
[368120501,1751029859377,-628.534855,0.00019178,2]
[368120502,1751029859389,-465.56153685,0.00019178,2]
[368120503,1751029859399,-628.534855,0.00019452,2]
[368120504,1751029859408,-460.0,0.00019726,2]
[368120505,1751029859418,-406.77585399,0.00019726,2]
[368120506,1751029859427,-460.0,0.0002,2]
[368120507,1751029859436,-151.0,0.00020219,2]
[368120508,1751029859445,-151.0,0.00020246,2]
[368120509,1751029859454,-460.0,0.00020273,2]
[368120510,1751029859463,-198.0,0.00020274,2]
[368120511,1751029859473,-460.0,0.00020547,2]
[368120512,1751029859482,-460.0,0.00020821,2]
[368120513,1751029859491,-151.0,0.00021,2]
[368120514,1751029859500,-460.0,0.00021095,2]
[368120515,1751029859509,-460.0,0.00021369,2]
[368120516,1751029859519,-581.27,0.00021643,2]
[368120517,1751029859529,-683.54,0.00021643,2]
[368120518,1751029859538,-151.0,0.00021643,2]
[368120519,1751029859547,-460.0,0.00021643,2]
[368120520,1751029859556,-581.27,0.00021917,2]
[368120521,1751029859567,-683.54,0.00021917,2]
[368120522,1751029859591,-460.0,0.00021917,2]
[368120523,1751029859608,-151.0,0.00022,7]
[368120524,1751029859626,-151.0,0.00022,7]
[368120525,1751029859646,-151.0,0.00022,7]
[368120526,1751029859666,-581.27,0.00022191,2]
[368120527,1751029859684,-683.54,0.00022191,2]
[368120528,1751029859703,-460.0,0.00022191,2]
[368120529,1751029859718,-151.0,0.000224,7]
[368120530,1751029859734,-581.27,0.00022465,2]
[368120531,1751029859752,-683.54,0.00022465,2]
[368120532,1751029859773,-460.0,0.00022465,2]
[368120533,1751029859785,-683.54,0.00022739,2]
[368120534,1751029859804,-581.27,0.00022739,2]
[368120535,1751029859818,-460.0,0.00022739,2]
[368120536,1751029859836,-151.0,0.0002287,7]
[368120537,1751029859849,-34558.74287806,0.00023,10]
[368120538,1751029859866,-14503.25395232,0.00023,7]
[368120539,1751029859883,-2000.0,0.00023,2]
[368120540,1751029859899,-2000.0,0.00023,2]
[368120541,1751029859914,-160.0,0.00023,3]
[368120542,1751029859931,-160.0,0.00023,3]
[368120543,1751029859946,-294.89,0.00023,7]
[368120544,1751029859962,-160.0,0.00023,3]
[368120545,1751029859977,-160.0,0.00023,3]
[368120546,1751029859994,-13737.58,0.00023,7]
[368120547,1751029860008,-194080.12,0.00023,7]
[368120548,1751029860019,-200.0,0.00023,2]
[368120549,1751029860029,-2256.39,0.00023,2]
[368120550,1751029860039,-151.0,0.00023,7]
[368120551,1751029860049,-162.558947,0.00023,7]
[368120552,1751029860059,-160.0,0.00023,3]
[368120553,1751029860069,-151.0,0.00023,7]
[368120554,1751029860078,-151.0,0.00023,7]
[368120555,1751029860088,-151.0,0.00023,7]
[368120556,1751029860097,-151.0,0.00023,7]
[368120557,1751029860107,-151.0,0.00023,7]
[368120558,1751029860116,-154.011906,0.00023,7]
[368120559,1751029860126,-151.0,0.00023,7]
[368120560,1751029860135,-151.0,0.00023,7]
[368120561,1751029860145,-151.0,0.00023,7]
[368120562,1751029860154,-395.397538,0.00023,7]
[368120563,1751029860163,-395.397538,0.00023,7]
[368120564,1751029860173,-280.313534,0.00023,7]
[368120565,1751029860184,-151.0,0.00023,7]
[368120566,1751029860193,-280.313534,0.00023,7]
[368120567,1751029860202,-444.860629,0.00023,7]
[368120568,1751029860212,-444.860629,0.00023,7]
[368120569,1751029860221,-151.0,0.00023,7]
[368120570,1751029860231,-151.0,0.00023,7]
[368120571,1751029860240,-151.0,0.00023,7]
[368120572,1751029860250,-151.0,0.00023,7]
[368120573,1751029860260,-151.0,0.00023,7]
[368120574,1751029860270,-151.0,0.00023,7]
[368120575,1751029860279,-151.0,0.00023,7]
[368120576,1751029860289,-151.0,0.00023,7]
[368120577,1751029860298,-151.0,0.00023,7]
[368120578,1751029860308,-151.0,0.00023,7]
[368120579,1751029860317,-151.0,0.00023,7]
[368120580,1751029860581,-217.838062,0.00023,7]
[368120581,1751029860595,-151.0,0.00023,7]
[368120582,1751029860606,-1822.186795,0.00023,7]
[368120583,1751029860616,-1822.186795,0.00023,7]
[368120584,1751029860625,-237.871569,0.00023,7]
[368120585,1751029860634,-237.871569,0.00023,7]
[368120586,1751029860643,-3398.84,0.00023,7]
[368120587,1751029860652,-151.0,0.00023,7]
[368120588,1751029860662,-249.895528,0.00023,7]
[368120589,1751029860671,-365.776085,0.00023,7]
[368120590,1751029860680,-365.776085,0.00023,7]
[368120591,1751029860689,-151.0,0.00023,7]
[368120592,1751029860698,-391.441034,0.00023,7]
[368120593,1751029860707,-391.441034,0.00023,7]
[368120594,1751029860716,-151.0,0.00023,7]
[368120595,1751029860725,-151.0,0.00023,7]
[368120596,1751029860735,-151.0,0.00023,7]
[368120597,1751029860744,-151.0,0.00023,7]
[368120598,1751029860753,-484.603058,0.00023,7]
[368120599,1751029860763,-484.603058,0.00023,7]
[368120600,1751029860773,-262.401285,0.00023,7]
[368120601,1751029860783,-262.401285,0.00023,7]
[368120602,1751029860792,-151.0,0.00023,7]
[368120603,1751029860801,-1000.0,0.00023,5]
[368120604,1751029860811,-269.95456355,0.00023,8]
[368120605,1751029860821,-325.549941,0.00023,7]
[368120606,1751029860831,-151.0,0.00023,7]
[368120607,1751029860844,-325.549941,0.00023,7]
[368120608,1751029860855,-153.164602,0.00023,7]
[368120609,1751029860865,-238.482201,0.00023,7]
[368120610,1751029860875,-238.482201,0.00023,7]
[368120611,1751029860884,-190.669086,0.00023,7]
[368120612,1751029860894,-154.342496,0.00023,7]
[368120613,1751029860904,-151.0,0.00023,7]
[368120614,1751029860915,-151.0,0.00023,7]
[368120615,1751029860926,-160.0,0.00023,3]
[368120616,1751029860936,-213.75309343,0.00023,10]
[368120617,1751029860945,-1003.441379,0.00023,2]
[368120618,1751029860955,-151.0,0.00023,7]
[368120619,1751029860965,-640.0,0.00023,2]
[368120620,1751029860974,-1603.9206,0.00023,2]
[368120621,1751029860983,-1603.9206,0.00023,2]
[368120622,1751029860993,-1294.823434,0.00023,7]
[368120623,1751029861003,-836.98798914,0.00023,3]
[368120624,1751029861013,-1294.823434,0.00023,7]
[368120625,1751029861023,-272.987476,0.00023,7]
[368120626,1751029861032,-188.525039,0.00023,2]
[368120627,1751029861041,-150.0,0.00023,7]
[368120628,1751029861050,-160.0,0.00023,3]
[368120629,1751029861059,-500.0,0.00023,8]
[368120630,1751029861068,-337.726261,0.00023,7]
[368120631,1751029861078,-337.726261,0.00023,7]
[368120632,1751029861087,-1059.846132,0.00023,2]
[368120633,1751029861097,-1059.846132,0.00023,2]
[368120634,1751029861106,-230.26210603,0.00023,3]
[368120635,1751029861116,-214.91804724,0.00023,3]
[368120636,1751029861126,-524.32400359,0.00023,10]
[368120637,1751029861135,-10118.81432848,0.00023003,8]
[368120638,1751029861145,-223.0315306,0.00023008,2]
[368120639,1751029861154,-5000.0,0.0002301,2]
[368120640,1751029861163,-460.0,0.00023013,2]
[368120641,1751029861173,-460.0,0.00023013,2]
[368120642,1751029861182,-460.0,0.00023013,2]
[368120643,1751029861191,-962.79,0.00023013,2]
[368120644,1751029861200,-460.0,0.00023013,2]
[368120645,1751029861211,-460.0,0.00023013,2]
[368120646,1751029861223,-460.0,0.00023013,2]
[368120647,1751029861232,-460.0,0.00023013,2]
[368120648,1751029861241,-872.16,0.00023013,2]
[368120649,1751029861252,-490.28,0.00023013,2]
[368120650,1751029861262,-676.53,0.00023013,2]
[368120651,1751029861273,-1544.03,0.00023013,2]
[368120652,1751029861283,-1861.18,0.00023013,2]
[368120653,1751029861293,-460.0,0.00023013,2]
[368120654,1751029861304,-2946.71,0.00023013,2]
[368120655,1751029861313,-6518.4,0.00023013,2]
[368120656,1751029861322,-460.0,0.00023013,2]
[368120657,1751029861334,-1266.37,0.00023013,2]
[368120658,1751029861345,-460.0,0.00023013,2]
[368120659,1751029861355,-1132.2,0.00023013,2]
[368120660,1751029861363,-765.43,0.00023013,2]
[368120661,1751029861374,-460.0,0.00023013,2]
[368120662,1751029861383,-848.57,0.00023013,2]
[368120663,1751029861393,-460.0,0.00023013,2]
[368120664,1751029861403,-5598.03,0.00023013,2]
[368120665,1751029861413,-460.0,0.00023013,2]
[368120666,1751029861423,-807.46,0.00023013,2]
[368120667,1751029861434,-2217.11,0.00023013,2]
[368120668,1751029861443,-851.26,0.00023013,2]
[368120669,1751029861452,-1687.24,0.00023013,2]
[368120670,1751029861462,-464.33,0.00023013,2]
[368120671,1751029861471,-682.9,0.00023013,2]
[368120672,1751029861480,-460.0,0.00023013,2]
[368120673,1751029861490,-626.65,0.00023013,2]
[368120674,1751029861500,-778.42,0.00023013,2]
[368120675,1751029861509,-1807.73,0.00023013,2]
[368120676,1751029861519,-2700.44,0.00023013,2]
[368120677,1751029861528,-1046.99,0.00023013,2]
[368120678,1751029861537,-1874.32,0.00023013,2]
[368120679,1751029861547,-1037.07,0.00023013,2]
[368120680,1751029861556,-627.06,0.00023013,2]
[368120681,1751029861566,-460.0,0.00023013,2]
[368120682,1751029861575,-460.0,0.00023013,2]
[368120683,1751029861584,-665.9,0.00023013,2]
[368120684,1751029861594,-530.15,0.00023013,2]
[368120685,1751029861604,-3786.78,0.00023013,2]
[368120686,1751029861613,-1216.38,0.00023013,2]
[368120687,1751029861623,-727.16,0.00023013,2]
[368120688,1751029861632,-3017.37,0.00023013,2]
[368120689,1751029861641,-4525.56,0.00023013,2]
[368120690,1751029861651,-515.06,0.00023013,2]
[368120691,1751029861660,-2147.92,0.00023013,2]
[368120692,1751029861669,-954.2,0.00023013,2]
[368120693,1751029861679,-848.16,0.00023013,2]
[368120694,1751029861688,-464.02,0.00023013,2]
[368120695,1751029861698,-5421.31,0.00023013,2]
[368120696,1751029861707,-460.0,0.00023013,2]
[368120697,1751029861716,-581.27,0.00023013,2]
[368120698,1751029861725,-683.54,0.00023013,2]
[368120699,1751029861735,-460.0,0.00023013,2]
[368120700,1751029861744,-2000.0,0.00023014,30]
[368120701,1751029861753,-2000.0,0.00023014,30]
[368120702,1751029861763,-2000.0,0.00023014,30]
[368120703,1751029861772,-2000.0,0.00023014,30]
[368120704,1751029861782,-2000.0,0.00023014,30]
[368120705,1751029861791,-2000.0,0.00023014,30]
[368120706,1751029861800,-2000.0,0.00023014,30]
[368120707,1751029861810,-2000.0,0.00023014,30]
[368120708,1751029861820,-2000.0,0.00023014,30]
[368120709,1751029861830,-2000.0,0.00023014,30]
[368120710,1751029861844,-2000.0,0.00023014,30]
[368120711,1751029861854,-2000.0,0.00023014,30]
[368120712,1751029861864,-2000.0,0.00023014,30]
[368120713,1751029861873,-2000.0,0.00023014,30]
[368120714,1751029861883,-2000.0,0.00023014,30]
[368120715,1751029861893,-2000.0,0.00023014,30]
[368120716,1751029861902,-2000.0,0.00023014,30]
[368120717,1751029861922,-2000.0,0.00023014,30]
[368120718,1751029861933,-2000.0,0.00023014,30]
[368120719,1751029861943,-2000.0,0.00023014,30]
[368120720,1751029861953,-2000.0,0.00023014,30]
[368120721,1751029861963,-2000.0,0.00023014,30]
[368120722,1751029861973,-2000.0,0.00023014,30]
[368120723,1751029861983,-898.0,0.00023014,30]
[368120724,1751029861993,-10400.39089948,0.00023046,2]
[368120725,1751029862003,-547.23150364,0.00023068,2]
[368120726,1751029862013,-1500.0,0.00023068,2]
[368120727,1751029862023,-1500.0,0.00023068,2]
[368120728,1751029862032,-362.11921019,0.00023068,2]
[368120729,1751029862042,-639.89679522,0.00023068,2]
[368120730,1751029862052,-1173.05894953,0.00023068,2]
[368120731,1751029862063,-583.896093,0.00023068,2]
[368120732,1751029862073,-494.99953402,0.00023068,2]
[368120733,1751029862083,-1500.0,0.00023068,2]
[368120734,1751029862093,-1800.0,0.00023068,2]
[368120735,1751029862103,-1500.0,0.00023068,2]
[368120736,1751029862113,-1500.0,0.00023068,2]
[368120737,1751029862122,-1108.605965,0.00023068,2]